bitfinex/quotes_ETHUSD_20250616
["timestamp","ask_amount","ask_price","bid_price","bid_amount"]
[1750116761872,2.90236851,2579.9,2579.6,3.87651681]
[1750116762189,2.327,2579.5,2579.2,3.87707419]
[1750116762350,2.327,2579.5,2579.0,1.991]
[1750116762560,2.327,2579.3,2579.1,3.87723683]
[1750116762756,2.327,2579.3,2579.2,3.87717121]
[1750116763061,2.327,2579.3,2579.1,3.87725414]
[1750116763254,2.327,2579.3,2579.2,3.87717121]
[1750116764655,2.327,2579.3,2579.1,3.87725475]
[1750116764870,2.327,2579.3,2579.0,5.86841323]
[1750116765081,2.327,2579.1,2578.8,3.87767507]
[1750116765365,2.327,2578.9,2578.8,3.87767507]
[1750116766093,2.327,2579.1,2579.0,3.87747188]
[1750116766264,6.911,2579.6,2579.2,3.87707047]
[1750116766619,10.7546,2579.1,2578.7,1.992]
[1750116766758,10.0,2578.9,2578.7,1.992]
[1750116766956,2.327,2578.8,2578.7,1.992]
[1750116767280,2.327,2578.8,2578.7,5.86992298]
[1750116767811,2.327,2578.8,2578.7,1.992]
[1750116768002,2.327,2578.8,2578.7,5.86992298]
[1750116768491,6.911,2579.0,2578.9,3.87762224]
[1750116768492,2.327,2579.0,2578.9,3.87762224]
[1750116768652,0.7902,2579.4,2579.1,3.87723156]
[1750116768852,12.327,2579.3,2579.2,3.87709116]
[1750116769060,19.237,2579.3,2579.2,3.87709116]
[1750116769263,19.78922126,2579.3,2579.2,3.87709116]
[1750116769464,19.78922126,2579.3,2578.7,2.5374]
[1750116769664,19.78922126,2579.3,2579.0,3.87734226]
[1750116770000,2.327,2578.6,2578.5,3.87822377]
[1750116770297,12.327,2578.6,2578.5,3.87822377]
[1750116770498,12.327,2579.0,2578.3,2.03078428]
[1750116770662,19.236,2579.0,2578.3,1.992]
[1750116770859,19.236,2579.0,2578.7,3.87783561]
[1750116771095,19.236,2579.0,2578.8,3.8777629]
[1750116771294,19.236,2579.0,2578.7,5.86988389]
[1750116771698,12.327,2579.0,2578.7,1.992]
[1750116771905,12.327,2579.0,2578.7,5.86990892]
[1750116772288,12.327,2579.0,2578.9,3.87762224]
[1750116772494,0.7946,2579.4,2579.2,3.87708887]
[1750116772713,6.8835026,2579.9,2579.6,3.87657001]
[1750116772714,0.7541,2579.7,2579.6,3.87657001]
[1750116772876,0.7541,2580.0,2579.6,5.86856061]
[1750116773075,7.6631,2580.0,2579.6,5.86854901]
[1750116773286,0.7541,2580.0,2579.8,3.87626947]
[1750116773574,0.7541,2580.4,2580.1,3.87570278]
[1750116773802,7.6621,2580.4,2580.2,3.87566544]
[1750116773973,10.0,2580.3,2580.2,3.87566544]
[1750116774173,0.7541,2580.4,2580.0,3.8759541]
[1750116774389,0.7541,2580.4,2580.0,3.87595911]
[1750116774390,2.327,2580.3,2580.0,3.87595911]
[1750116775091,12.327,2580.3,2580.0,1.992]
[1750116775291,14.32346026,2580.2,2580.0,1.992]
[1750116776015,14.32346026,2580.2,2580.0,5.86796752]
[1750116776324,3.0811,2580.4,2580.0,1.992]
[1750116776526,2.327,2580.4,2580.3,3.87551835]
[1750116776691,10.0,2580.6,2580.3,3.87551238]
[1750116776895,6.906,2580.6,2580.3,3.87541503]
[1750116777212,6.906,2580.6,2580.4,3.87533964]
[1750116777416,9.233,2580.6,2580.3,3.87545914]
[1750116778315,9.233,2580.6,2580.2,3.87562054]
[1750116778517,2.327,2580.4,2580.0,5.86787522]
[1750116778818,2.327,2580.4,2580.1,3.87573396]
[1750116778993,2.327,2580.4,2580.0,5.86788083]
[1750116779194,2.327,2580.4,2580.0,1.992]
[1750116779195,11.58291448,2580.3,2580.0,1.992]
[1750116779524,16.8835026,2580.1,2580.0,1.992]
[1750116779678,10.0,2580.0,2579.5,1.992]
[1750116779882,6.8835026,2579.7,2579.5,1.992]
[1750116780081,6.904,2579.6,2579.5,1.992]
[1750116780331,10.0,2579.5,2579.0,1.992]
[1750116780502,12.76639341,2579.5,2579.0,1.992]
[1750116780701,12.76639341,2579.5,2579.0,5.86946315]
[1750116780906,12.76639341,2579.5,2579.1,3.87732154]
[1750116781103,10.0,2579.5,2579.3,3.87689831]
[1750116781302,10.0,2579.5,2579.0,5.86944647]
[1750116782116,0.8186,2579.4,2579.0,5.86944905]
[1750116782701,0.8186,2579.4,2579.1,3.87727384]
[1750116782933,0.8186,2579.4,2579.0,1.992]
[1750116783230,16.904,2579.4,2579.3,3.87702058]
[1750116783720,16.904,2579.4,2579.0,2.0307708]
[1750116783721,6.904,2579.4,2579.2,3.87715362]
[1750116783891,10.0,2579.3,2579.2,3.87715362]
[1750116784107,10.0,2579.3,2579.1,3.87728717]
[1750116784310,0.8186,2579.7,2579.4,3.87679091]
[1750116784526,8.80346,2579.7,2579.2,3.87717121]
[1750116784835,8.80346,2579.7,2579.4,3.87686019]
[1750116785344,8.80346,2579.7,2579.4,3.8768477]
[1750116785546,40.8326,2579.0,2576.4,0.7639]
[1750116785713,16.8835026,2577.2,2576.4,0.7639]
[1750116785896,24.41168233,2577.2,2576.4,0.7639]
[1750116786103,30.27066972,2577.2,2576.4,0.7639]
[1750116786305,30.27066972,2577.2,2576.1,4.68392721]
[1750116786306,10.0,2577.1,2576.1,4.68392721]
[1750116786497,10.0,2577.1,2576.1,0.8022]
[1750116786498,10.0,2576.7,2576.1,0.8022]
[1750116786702,18.68446026,2576.7,2576.1,0.8022]
[1750116786923,18.68446026,2576.7,2576.2,5.87358231]
[1750116787237,18.68446026,2576.7,2576.2,1.992]
[1750116787454,18.68446026,2576.7,2576.3,3.88144445]
[1750116787798,18.68446026,2576.7,2576.4,3.88136642]
[1750116788027,16.918,2576.7,2576.3,3.88147788]
[1750116788262,16.918,2576.7,2576.2,5.8736499]
[1750116788448,10.0,2576.7,2576.2,1.992]
[1750116788650,6.909,2576.7,2576.2,1.992]
[1750116788965,16.909,2576.7,2576.2,5.87366849]
[1750116789151,10.0,2576.6,2576.2,5.87366849]
[1750116789672,11.76901,2576.6,2576.2,1.992]
[1750116789876,10.0,2576.4,2576.1,0.04]
[1750116790476,10.0,2576.4,2576.1,3.92182085]
[1750116790655,10.0,2576.4,2576.1,0.04]
[1750116791056,10.0,2576.4,2576.1,3.92177209]
[1750116791696,10.0,2576.4,2576.2,3.88166733]
[1750116792681,10.0,2576.4,2576.2,3.88167823]
[1750116793090,10.0,2576.4,2576.1,0.04]
[1750116793458,11.60704206,2576.4,2576.1,0.04]
[1750116793652,10.0,2576.2,2576.1,3.92177674]
[1750116794667,10.0,2576.2,2576.1,3.92183688]
[1750116795092,14.6478862,2576.2,2576.1,0.04]
[1750116795294,13.88207609,2576.0,2575.3,3.88303436]
[1750116795499,10.0,2575.4,2575.1,3.92324437]
[1750116795707,6.908,2575.3,2575.1,0.04]
[1750116796197,10.0,2575.3,2575.2,3.88317747]
[1750116796396,16.909,2575.3,2575.2,3.88317747]
[1750116796964,16.909,2575.3,2575.1,3.92324129]
[1750116797165,16.909,2575.3,2575.1,0.04]
[1750116797166,11.6909,2575.2,2575.1,0.04]
[1750116797500,2.07688468,2575.2,2575.1,0.04]
[1750116798831,2.07688468,2575.2,2574.5,1.989]
[1750116798972,10.0,2575.0,2574.6,3.88400297]
[1750116799293,12.327,2574.8,2574.6,3.88400297]
[1750116799494,12.327,2574.8,2574.5,5.87320656]
[1750116799693,12.327,2574.8,2574.4,3.88431265]
[1750116799896,12.327,2574.6,2574.5,3.88414386]
[1750116800499,14.17560692,2574.6,2574.4,1.989]
[1750116801006,1.84860692,2574.5,2574.4,5.87339704]
[1750116801506,1.84860692,2574.5,2574.1,0.04]
[1750116801507,15.3284312,2574.5,2574.1,0.04]
[1750116801806,15.3284312,2574.5,2574.4,3.88440024]
[1750116802004,0.38598468,2575.2,2574.4,4.69810024]
[1750116802190,6.91,2575.3,2574.5,2.02883606]
[1750116802394,10.0,2575.2,2575.0,3.88347141]
[1750116802595,16.91,2575.1,2575.0,3.88347141]
[1750116802909,2.327,2574.9,2574.6,3.88396778]
[1750116803119,2.327,2574.9,2574.3,1.99]
[1750116803120,2.327,2574.8,2574.7,3.88394764]
[1750116803320,2.327,2574.8,2574.6,3.88403602]
[1750116803482,2.327,2574.8,2574.7,3.88394764]
[1750116803683,2.327,2574.8,2574.3,1.99]
[1750116803684,12.327,2574.7,2574.6,3.88402867]
[1750116803906,14.2508,2574.7,2574.5,3.88420197]
[1750116804622,2.327,2574.5,2574.4,3.88440024]
[1750116804806,12.327,2574.5,2574.4,3.88440024]
[1750116805317,2.327,2574.5,2574.4,3.88440024]
[1750116805521,10.0,2574.6,2574.5,3.88424936]
[1750116805829,16.911,2574.8,2574.7,3.88394764]
[1750116806027,10.0,2574.8,2574.7,3.88394764]
[1750116806885,10.0,2574.8,2574.1,0.04]
[1750116806886,1.0,2574.8,2574.1,0.04]
[1750116807095,10.0,2574.3,2574.1,0.04]
[1750116807323,0.03883788,2574.2,2574.1,0.04]
[1750116807526,2.36583788,2574.2,2574.1,0.04]
[1750116807730,15.37031256,2574.2,2574.1,0.04]
[1750116807890,15.33147468,2574.2,2574.1,0.04]
[1750116808223,15.7292068,2574.2,2574.1,0.04]
[1750116808587,22.6872068,2574.2,2574.1,0.04]
[1750116809024,12.72473212,2574.2,2574.1,0.04]
[1750116809209,10.39773212,2574.2,2574.1,3.92485295]
[1750116809407,6.963,2574.7,2574.1,2.03]
[1750116809608,0.03883788,2574.6,2574.3,3.88441339]
[1750116809833,0.42562523,2574.6,2574.3,3.88441339]
[1750116810128,0.03883788,2574.6,2574.2,3.88463785]
[1750116810314,6.962,2575.1,2574.2,0.7792]
[1750116810627,0.03883788,2575.0,2574.7,3.88393205]
[1750116810828,0.03883788,2575.0,2574.6,3.88400988]
[1750116810994,10.0,2574.8,2574.2,0.7792]
[1750116811187,0.38142394,2574.8,2574.7,3.88393915]
[1750116811494,10.0,2574.8,2574.6,3.88403619]
[1750116811927,10.0,2574.8,2574.2,4.66375155]
[1750116812113,12.38435026,2574.8,2574.4,3.88439455]
[1750116812629,12.38435026,2574.8,2574.5,3.88422956]
[1750116812835,12.38435026,2574.8,2574.5,1.991]
[1750116813035,3.14213788,2574.7,2574.3,3.88446575]
[1750116813238,6.946,2574.6,2574.3,3.88446575]
[1750116813411,12.38435026,2574.8,2574.5,3.88412074]
[1750116813617,0.37897543,2574.8,2574.6,1.991]
[1750116813914,0.59583959,2574.8,2574.6,1.991]
[1750116814111,10.0,2574.6,2574.3,1.991]
[1750116814437,10.91748438,2574.6,2574.3,5.87554682]
[1750116814800,10.91748438,2574.6,2574.3,1.991]
[1750116815115,6.957,2574.7,2574.6,3.8840985]
[1750116815322,10.0,2574.6,2574.3,1.991]
[1750116815526,0.92256369,2574.5,2574.4,3.8843983]
[1750116816942,0.92256369,2574.5,2574.4,4.6635983]
[1750116817237,10.0,2574.8,2574.6,3.8840985]
[1750116817437,10.0,2574.8,2574.7,3.88384348]
[1750116817628,10.92348479,2574.8,2574.7,3.88384348]
[1750116818029,10.92348479,2574.8,2574.6,3.88396437]
[1750116818238,11.15828752,2574.8,2574.7,5.88494764]
[1750116818537,12.0822912,2574.8,2574.7,5.88494764]
[1750116819055,2.0822912,2574.8,2574.7,5.88494764]
[1750116819251,4.4092912,2574.8,2574.7,2.001]
[1750116819546,5.8514545,2574.8,2574.7,2.001]
[1750116819750,6.24958177,2574.8,2574.7,2.001]
[1750116820254,7.02177346,2574.8,2574.7,2.001]
[1750116820633,7.331202,2574.8,2574.7,2.001]
[1750116820958,7.331202,2574.8,2574.1,0.04]
[1750116820959,2.327,2574.6,2574.1,0.04]
[1750116821164,2.327,2574.2,2574.1,0.04]
[1750116821363,13.25100368,2574.2,2574.1,0.04]
[1750116821828,13.25100368,2574.2,2574.1,5.92585295]
[1750116821954,14.40808804,2574.2,2574.1,5.92585295]
[1750116822156,2.08108804,2574.2,2574.1,5.92585295]
[1750116822354,0.92400368,2574.2,2574.1,5.92585295]
[1750116823173,2.08108804,2574.2,2574.1,5.92585295]
[1750116824483,0.92400368,2574.2,2574.1,5.92585295]
[1750116824770,3.25100368,2574.2,2574.1,5.92585295]
[1750116824970,3.25100368,2574.2,2574.1,2.041]
[1750116825279,15.56421686,2574.2,2574.1,2.041]
[1750116825499,15.56421686,2574.2,2574.1,5.92585295]
[1750116825786,17.42964977,2574.2,2574.1,2.041]
[1750116825936,15.11643659,2574.2,2574.1,2.041]
[1750116826384,14.19243291,2574.2,2574.1,2.041]
[1750116826564,14.19245117,2574.2,2574.1,2.041]
[1750116826771,14.19245009,2574.2,2574.1,2.041]
[1750116827156,15.12165297,2574.2,2574.1,2.041]
[1750116827457,15.12165297,2574.2,2574.1,3.92485295]
[1750116827789,13.56523128,2574.2,2574.1,5.92585295]
[1750116828270,13.56554662,2574.2,2574.1,5.92585295]
[1750116828472,15.58034006,2574.2,2574.1,5.92585295]
[1750116828678,1.23851941,2574.2,2574.1,5.92585295]
[1750116828878,2.47854851,2574.2,2574.1,5.96469681]
[1750116829410,2.09121624,2574.2,2574.1,6.75919681]
[1750116829550,0.92920288,2574.2,2574.1,6.75919681]
[1750116829951,2.09121624,2574.2,2574.1,6.72035295]
[1750116830372,0.92920288,2574.2,2574.1,6.72035295]
[1750116830583,2.09132398,2574.2,2574.1,6.75919702]
[1750116830801,0.92920288,2574.2,2574.1,6.72035295]
[1750116831853,0.92920288,2574.2,2574.1,13.66035295]
[1750116834281,13.4891211,2574.6,2574.5,3.88424936]
[1750116834480,14.41867441,2574.6,2574.5,3.88424936]
[1750116834885,0.92955331,2574.6,2574.5,3.92308943]
[1750116835179,1.1621211,2575.1,2575.0,3.88349514]
[1750116835383,2.09125454,2575.1,2575.0,5.88449514]
[1750116835563,0.92913344,2575.1,2575.0,5.88449514]
[1750116835901,0.92913344,2575.1,2575.0,3.88349514]
[1750116836085,0.92913344,2575.1,2575.0,12.80349514]
[1750116836800,0.92913344,2575.1,2575.0,13.57079514]
[1750116837189,13.4891211,2575.5,2575.3,3.88294052]
[1750116837388,2.43232254,2575.4,2575.3,3.88294052]
[1750116838129,2.43232254,2575.4,2574.7,3.88392507]
[1750116838130,0.7945,2575.1,2573.8,0.005]
[1750116838402,20.0050026,2574.2,2573.8,0.005]
[1750116838612,21.31883064,2574.2,2574.0,3.88499798]
[1750116838783,13.64082804,2574.2,2574.1,5.92585295]
[1750116838966,13.64082804,2574.2,2574.1,2.041]
[1750116839162,13.25547587,2574.2,2574.1,2.041]
[1750116839563,13.25547587,2574.2,2574.1,3.92485295]
[1750116839784,13.25547587,2574.2,2574.1,2.041]
[1750116840481,22.74213481,2574.2,2574.1,0.04]
[1750116840717,15.09254744,2574.2,2574.1,0.04]
[1750116840893,13.6508536,2574.2,2574.1,0.04]
[1750116841098,13.6508536,2574.2,2574.1,3.92485295]
[1750116841418,13.25547587,2574.2,2574.1,3.92485295]
[1750116841822,10.0,2574.2,2574.1,3.92485295]
[1750116842737,8.43211927,2575.0,2574.6,3.8840985]
[1750116842738,0.92847587,2574.7,2574.6,3.8840985]
[1750116842896,3.25547587,2574.9,2574.8,3.88379679]
[1750116843101,3.25547587,2574.9,2574.8,2.001]
[1750116843102,3.66237346,2574.9,2574.8,2.001]
[1750116843324,13.66237346,2574.9,2574.8,2.001]
[1750116844625,13.25547587,2574.9,2574.8,5.88479679]
[1750116844829,10.0,2574.9,2574.8,5.88479679]
[1750116845342,2.327,2575.2,2575.1,3.88334433]
[1750116845529,2.327,2575.2,2574.8,2.001]
[1750116845530,2.327,2575.2,2575.0,3.88344064]
[1750116845909,2.327,2575.2,2575.0,2.001]
[1750116845910,2.36583788,2575.2,2575.0,2.001]
[1750116846116,3.65645686,2575.1,2575.0,2.001]
[1750116846299,2.327,2575.1,2575.0,5.88449514]
[1750116846649,2.327,2575.1,2575.0,2.001]
[1750116847942,2.327,2575.1,2574.3,3.88448304]
[1750116848298,2.327,2574.8,2574.4,5.89531929]
[1750116848454,12.63998,2574.7,2574.4,5.89531929]
[1750116848622,2.327,2574.7,2574.4,5.89531929]
[1750116849136,2.327,2574.7,2574.5,2.011]
[1750116849563,2.327,2574.7,2574.1,0.04]
[1750116849564,2.327,2574.4,2574.1,0.04]
[1750116849845,16.8835026,2574.2,2574.1,0.04]
[1750116850172,19.2105026,2574.2,2574.1,0.04]
[1750116850322,10.0,2574.2,2574.1,3.92485295]
[1750116850644,8.0449651,2574.9,2574.1,3.92485295]
[1750116850645,0.92869794,2574.8,2574.5,3.88422025]
[1750116850842,10.0,2574.8,2574.5,2.011]
[1750116851139,12.79013429,2574.8,2574.5,2.011]
[1750116851348,2.327,2574.7,2574.6,3.88407166]
[1750116851939,7.6863026,2574.9,2574.7,3.88387985]
[1750116851940,10.0,2574.9,2574.7,3.88387985]
[1750116852104,6.993,2575.0,2574.5,5.89521698]
[1750116852440,2.327,2574.7,2574.6,3.8840985]
[1750116852942,2.327,2574.7,2574.5,3.88419919]
[1750116853238,2.327,2574.7,2574.4,3.8843885]
[1750116853408,2.327,2574.8,2574.6,3.88401418]
[1750116854141,2.327,2574.8,2574.3,2.011]
[1750116854329,4.2586,2574.8,2574.4,3.88429834]
[1750116854532,14.2586,2574.8,2574.3,5.89550679]
[1750116854728,2.327,2574.6,2574.3,5.89550679]
[1750116854934,2.327,2574.6,2574.4,3.88439548]
[1750116855340,2.327,2574.6,2574.3,2.011]
[1750116855540,2.327,2574.4,2574.3,2.011]
[1750116855740,12.327,2574.4,2574.3,5.89555114]
[1750116856038,2.327,2574.4,2574.3,5.89555114]
[1750116856240,2.327,2574.4,2574.3,2.011]
[1750116856565,6.21170204,2574.2,2574.1,0.04]
[1750116856745,6.21170204,2574.2,2573.8,0.005]
[1750116856746,3.88515482,2573.9,2573.8,0.005]
[1750116856905,33.38963625,2573.9,2573.8,0.005]
[1750116857248,38.09491172,2573.9,2573.8,0.005]
[1750116857546,2.327,2573.5,2573.1,10.258]
[1750116857705,12.327,2573.2,2573.1,10.258]
[1750116858208,12.327,2573.2,2573.1,8.247]
[1750116859057,23.91526615,2573.2,2573.1,0.04]
[1750116859210,27.93345757,2573.2,2573.1,0.04]
[1750116859543,27.00539277,2573.2,2573.1,0.04]
[1750116860063,27.93221089,2573.2,2573.1,0.04]
[1750116860232,23.11918105,2573.2,2573.1,0.04]
[1750116860427,13.1006,2573.2,2573.1,0.04]
[1750116860764,20.02905443,2573.2,2573.1,0.04]
[1750116861060,23.91526615,2573.2,2573.1,0.04]
[1750116861362,16.21336275,2573.1,2573.0,0.2146381]
[1750116861568,24.12356128,2573.1,2573.0,0.2146381]
[1750116861728,2.327,2572.5,2571.6,0.784]
[1750116861927,10.86793788,2572.4,2572.0,2.012]
[1750116862132,10.8291,2572.4,2572.0,2.012]
[1750116862371,0.03883788,2572.3,2572.0,2.012]
[1750116862664,16.92845443,2572.2,2571.8,2.012]
[1750116862866,16.92845443,2572.2,2571.8,5.90030848]
[1750116863031,16.92845443,2572.2,2572.1,0.04]
[1750116865437,10.0,2572.2,2572.1,0.04]
[1750116865663,10.0,2572.2,2572.1,3.92787372]
[1750116865969,0.38499816,2572.4,2572.2,3.88760785]
[1750116866173,11.42834526,2572.4,2572.1,5.94080549]
[1750116866664,6.92845443,2572.6,2572.1,2.053]
[1750116866961,6.968,2572.5,2572.1,2.053]
[1750116867170,0.03883788,2572.4,2572.1,2.053]
[1750116867370,7.00683788,2572.5,2572.3,3.88757143]
[1750116867571,10.0,2572.4,2572.3,3.88757143]
[1750116868273,10.0,2572.4,2572.2,3.88765146]
[1750116868460,0.03883788,2572.3,2572.1,2.053]
[1750116868660,10.0,2572.5,2572.1,2.053]
[1750116868876,16.966,2572.5,2572.2,3.88762741]
[1750116869173,0.39087022,2572.6,2572.2,3.88762741]
[1750116869342,6.967,2572.5,2572.2,3.88762741]
[1750116869542,6.967,2572.5,2572.1,0.04]
[1750116869543,10.0,2572.3,2572.1,0.04]
[1750116869754,10.03883788,2572.2,2572.1,0.04]
[1750116869980,10.0,2572.1,2571.8,2.003]
[1750116870271,2.03883788,2572.0,2571.8,2.003]
[1750116870474,10.0,2571.9,2571.8,2.003]
[1750116870682,10.0,2571.9,2571.1,12.13935787]
[1750116870683,0.7681,2571.4,2570.4,0.2146381]
[1750116870905,4.083,2571.2,2571.1,3.88926374]
[1750116871061,0.7681,2571.7,2570.7,0.7887]
[1750116871254,10.80693788,2571.7,2570.8,0.03889406]
[1750116871581,10.7681,2571.7,2570.9,2.013]
[1750116871783,10.7681,2571.7,2571.5,3.88868835]
[1750116871941,0.03883788,2571.6,2571.3,3.88908136]
[1750116872281,10.0,2571.4,2570.9,2.013]
[1750116872581,10.0,2571.4,2571.3,3.88908334]
[1750116873278,0.7681,2571.7,2571.1,3.88938586]
[1750116873485,10.0,2571.6,2571.5,3.88863974]
[1750116873668,10.0,2571.8,2571.7,3.88847843]
[1750116874343,12.327,2571.9,2571.8,3.88827079]
[1750116874595,12.327,2571.9,2571.8,3.83827079]
[1750116875257,2.327,2571.9,2571.8,3.83827079]
[1750116875448,0.7563,2572.0,2571.9,3.88817605]
[1750116875449,19.369,2572.0,2571.9,3.88817605]
[1750116876259,12.327,2572.0,2571.9,3.88817605]
[1750116879584,12.327,2572.0,2571.9,3.83817605]
[1750116879790,12.327,2572.0,2571.8,3.8882337]
[1750116879965,10.0,2571.9,2571.8,3.88832724]
[1750116880703,2.327,2572.1,2572.0,3.88802488]
[1750116880983,28.68748036,2572.1,2572.0,3.88802488]
[1750116881191,10.0,2572.0,2571.9,3.88812916]
[1750116884048,10.0,2572.0,2571.9,3.83812916]
[1750116884247,28.68748036,2572.1,2572.0,3.88802488]
[1750116884697,10.0,2572.0,2571.7,2.046]
[1750116884851,10.0,2572.0,2571.9,3.88817605]
[1750116885280,2.327,2572.1,2572.0,3.88802488]
[1750116885465,9.34648036,2572.0,2571.7,2.046]
[1750116885669,9.34648036,2572.0,2571.9,3.88817605]
[1750116886009,29.1893284,2572.0,2571.7,2.046]
[1750116886315,10.92876621,2571.9,2571.7,2.046]
[1750116886602,0.92876621,2571.8,2571.7,2.046]
[1750116886806,0.92876621,2571.8,2571.7,5.93447843]
[1750116887380,0.92876621,2571.8,2571.7,2.046]
[1750116887706,23.82541355,2571.8,2571.7,2.046]
[1750116887880,23.78657567,2571.8,2571.7,2.046]
[1750116888201,16.21556458,2571.7,2571.2,2.046]
[1750116888406,2.327,2571.2,2570.4,1.0264381]
[1750116888608,0.92876621,2571.1,2571.0,3.88953714]
[1750116888808,1.15148882,2571.6,2571.4,3.88893209]
[1750116889011,0.9302157,2571.5,2571.4,3.88893209]
[1750116890172,0.9302157,2571.5,2571.3,3.88893601]
[1750116890372,0.9302157,2571.4,2571.3,3.88893601]
[1750116890770,10.0,2571.5,2571.4,3.88893209]
[1750116890980,10.93059411,2571.5,2571.2,3.88918623]
[1750116891208,9.34648036,2571.3,2571.1,2.046]
[1750116891409,0.93059411,2571.2,2571.1,2.046]
[1750116891576,10.93059411,2571.2,2571.1,2.046]
[1750116892179,10.93059411,2571.2,2571.1,5.93538586]
[1750116892913,0.93059411,2571.2,2571.1,5.93538586]
[1750116893120,0.93059411,2571.2,2571.1,2.046]
[1750116893510,2.71741236,2571.2,2571.1,2.046]
[1750116893720,0.93059411,2571.2,2571.1,5.93538586]
[1750116893886,12.60407447,2571.2,2570.7,0.7755]
[1750116894091,0.93059411,2571.1,2570.7,0.7755]
[1750116894419,13.25759411,2571.0,2570.8,5.93575777]
[1750116894586,13.25759411,2570.9,2570.8,5.93575777]
[1750116895004,13.25759411,2570.9,2570.8,2.046]
[1750116895288,13.25759411,2570.9,2570.8,5.93583973]
[1750116895487,13.25759411,2570.9,2570.8,2.046]
[1750116895692,14.58335352,2570.9,2570.8,2.046]
[1750116896023,14.58335352,2570.9,2570.6,3.89009135]
[1750116896224,13.65275941,2570.9,2570.8,2.046]
[1750116896533,14.58249109,2570.9,2570.8,2.046]
[1750116896751,13.25673168,2570.9,2570.8,5.93583973]
[1750116896957,12.327,2570.9,2570.8,5.93583973]
[1750116897136,2.327,2570.9,2570.8,5.93583973]
[1750116897437,2.327,2571.0,2570.9,3.88968843]
[1750116897739,3.25660016,2571.0,2570.9,3.83968843]
[1750116898301,3.25660016,2571.0,2570.8,5.93577553]
[1750116898598,2.327,2571.0,2570.8,5.93577553]
[1750116898798,2.327,2571.0,2570.8,3.88977553]
[1750116898799,4.49434804,2571.0,2570.8,3.88977553]
[1750116898998,4.49434804,2571.0,2570.8,5.93677553]
[1750116899628,4.49434804,2571.0,2570.8,2.047]
[1750116899629,0.92967234,2570.9,2570.8,2.047]
[1750116900243,22.6031527,2570.9,2570.8,2.047]
[1750116900440,26.49284113,2570.9,2570.8,2.047]
[1750116900602,26.41819924,2570.9,2570.8,2.047]
[1750116900801,26.41819924,2570.9,2570.6,2.047]
[1750116901015,12.327,2570.7,2570.6,2.047]
[1750116901218,2.327,2570.5,2570.4,0.2146381]
[1750116901417,25.66145781,2570.5,2570.4,0.4746381]
[1750116901741,25.62261993,2570.5,2570.4,0.4746381]
[1750116901945,13.25667234,2570.5,2570.4,4.36508316]
[1750116902245,12.327,2570.5,2570.4,0.4746381]
[1750116902628,13.25667234,2570.5,2570.4,0.4746381]
[1750116903033,18.51806605,2570.5,2570.4,0.4746381]
[1750116903247,14.07777234,2570.5,2570.4,4.36508316]
[1750116903577,12.327,2570.5,2570.4,4.36508316]
[1750116905069,12.327,2570.5,2570.4,2.5216381]
[1750116905243,13.5597,2570.5,2570.4,2.5216381]
[1750116906495,12.327,2570.5,2570.4,6.41208316]
[1750116906841,10.0,2570.5,2570.4,6.41208316]
[1750116907251,12.327,2570.5,2570.4,6.41208316]
[1750116907749,12.327,2570.5,2570.4,4.36508316]
[1750116907952,12.327,2570.5,2570.4,2.5216381]
[1750116908152,15.18824804,2570.5,2570.4,2.5216381]
[1750116908348,23.49494804,2570.5,2570.4,2.5216381]
[1750116908649,23.49494804,2570.5,2570.4,0.4746381]
[1750116908650,28.31303305,2570.5,2570.4,0.4746381]
[1750116909247,29.47580268,2570.5,2570.4,0.4746381]
[1750116909453,28.31303305,2570.5,2570.4,0.4746381]
[1750116909649,29.47580268,2570.5,2570.4,0.4746381]
[1750116909852,6.7677478,2570.2,2570.1,0.04]
[1750116910083,6.7677478,2570.2,2569.3,9.6737461]
[1750116910084,3.89150484,2569.7,2569.3,9.6737461]
[1750116910305,21.67348036,2569.4,2569.3,1.4557461]
[1750116910468,12.327,2569.4,2569.3,5.34785679]
[1750116911510,9.34648036,2570.2,2569.9,3.89111502]
[1750116911723,6.939,2570.1,2569.9,3.8910554]
[1750116911921,6.939,2570.1,2570.0,3.8909234]
[1750116912073,0.7822,2570.0,2569.4,3.89195921]
[1750116912273,2.327,2569.5,2569.4,3.89182566]
[1750116912474,2.327,2569.5,2569.3,5.34773355]
[1750116912475,2.327,2569.5,2569.3,1.4557461]
[1750116912673,29.93048036,2569.4,2569.3,1.4557461]
[1750116913290,33.82243957,2569.4,2569.3,1.4557461]
[1750116913471,37.59386445,2569.4,2569.3,1.4557461]
[1750116913673,6.21941368,2569.1,2568.8,1.997]
[1750116913918,34.026804,2569.1,2568.7,1.997]
[1750116914082,33.98796612,2569.1,2568.7,1.997]
[1750116914277,33.98796612,2569.1,2568.0,0.8207]
[1750116914278,2.877,2568.9,2568.0,0.8207]
[1750116914478,10.0,2568.4,2568.2,1.997]
[1750116914717,10.0,2568.4,2568.3,3.89362613]
[1750116915029,10.0,2568.4,2568.2,5.89074685]
[1750116915178,10.38258384,2568.4,2568.3,1.997]
[1750116915579,10.38258384,2568.4,2568.1,8.26]
[1750116915819,10.38258384,2568.4,2568.2,5.8906777]
[1750116916136,9.34648036,2569.0,2568.3,3.89352786]
[1750116916440,10.0,2568.5,2568.1,0.04]
[1750116916619,0.03883788,2568.4,2568.3,3.89362613]
[1750116916785,0.7859,2568.9,2568.6,3.89317137]
[1750116916786,10.0,2568.7,2568.6,3.89317137]
[1750116916993,10.0,2568.6,2568.2,3.89374025]
[1750116917302,10.0,2568.6,2568.1,0.04]
[1750116917303,3.6508,2568.2,2567.8,0.2146381]
[1750116917495,12.22348036,2567.9,2567.8,0.2146381]
[1750116917824,2.877,2567.6,2567.5,0.25736368]